Card Number,Card ID,Card Name,Card Type,Card User,Reference,Tran Type,Tran ID,Tran Date,Tran Year,Tran Period,Comm Date,Orig Comm Year,Orig Comm Period,Curr Comm Year,Curr Comm Period,Value,VAT Value,Nett Value,VAT Code,VAT Rate,VAT Year,VAT Period,VAT Inv,VAT Number,Supplier,Description,Purchase Type,Cost Centre,Account,Classification,Additional Ref,Department,Section,Compared,Compared Date,Compared By,Compared ID,Batch/Run Id,Disputed,Dispute Date,Dispute By,Dispute Reason,Authorised,Authorised Date,Authorised By,Jnl Date,Jnl Year,Jnl Period,Entered By,Entered Date,Year End Proc,Year End Ind
************5113,6,Mr Duncan J Byrne,U,Duncan Byrne,9616,C,9616,03/01/2023,2022,10,04/01/2023,2022,10,2022,10,3.99,0.67,3.32,B,20%,2022,10,Y,776598457,CAR CARE GARSTANG,1x Key Cut - 3.99 (above for Ranger Access to Visit Garstang),Other,3131,40100,,,People and Places,People and Places,Y,06/02/2023 11:10,CCROOK,6882,7396,N,,,,Y,25/02/2023 09:07,ABODEN,04/01/2023,2022,10,DBYRNE,04/01/2023 13:19,N,N
************5113,6,Mr Duncan J Byrne,U,Duncan Byrne,9854,C,9854,07/01/2023,2022,10,24/02/2023,2022,11,2022,11,5.98,1.00,4.98,B,20%,2022,11,Y,343475355,Morrisons Supermarkets,2x Hot Chocolate Drink mix - 5.98 (above for Events and Volunteers),Other,3131,46842,,,People and Places,People and Places,Y,24/02/2023 16:20,DBYRNE,6919,7582,N,,,,Y,25/02/2023 09:07,ABODEN,24/02/2023,2022,11,DBYRNE,24/02/2023 15:09,N,N
************5113,6,Mr Duncan J Byrne,U,Duncan Byrne,9853,C,9853,07/01/2023,2022,10,24/02/2023,2022,11,2022,11,62.93,0.00,62.93,C,0%,2022,11,,,Morrisons Supermarket,4x Sugar - 5.96 5x Coffee - 35.98 4x Tea - 21.00 (above for Events and Volunteers),Other,3131,46842,,,People and Places,People and Places,Y,24/02/2023 16:20,DBYRNE,6919,7582,N,,,,Y,25/02/2023 09:07,ABODEN,24/02/2023,2022,11,DBYRNE,24/02/2023 15:02,N,N
************5113,6,Mr Duncan J Byrne,U,Duncan Byrne,9855,C,9855,19/01/2023,2022,10,24/02/2023,2022,11,2022,11,9.50,1.58,7.92,B,20%,2022,11,Y,312236700,C & C Supplies Collinson LTD,100x Re-leasable cable ties - 9.50 (above to use at Hedge Laying Competition),Other,3131,42002,,,People and Places,People and Places,Y,24/02/2023 16:21,DBYRNE,6920,7583,N,,,,Y,25/02/2023 09:07,ABODEN,24/02/2023,2022,11,DBYRNE,24/02/2023 15:14,N,N
************5113,6,Mr Duncan J Byrne,U,Duncan Byrne,9856,C,9856,21/01/2023,2022,10,24/02/2023,2022,11,2022,11,5.38,0.90,4.48,B,20%,2022,11,Y,322950373,Fast Fix Workshop Ltd,2x J20 Staples - 5.38 (above to use in WECP Staple guns),Other,3130,40100,,,People and Places,People and Places,Y,24/02/2023 16:21,DBYRNE,6921,7584,N,,,,Y,25/02/2023 09:07,ABODEN,24/02/2023,2022,11,DBYRNE,24/02/2023 15:19,N,N
************5113,6,Mr Duncan J Byrne,U,Duncan Byrne,9857,C,9857,21/01/2023,2022,10,24/02/2023,2022,11,2022,11,5.55,0.00,5.55,C,0%,2022,11,,,Co-Op Supermarket,3x Milk - 5.55 (above for Hedgelaying Competition),Other,3131,46842,,,People and Places,People and Places,Y,24/02/2023 16:21,DBYRNE,6922,7585,N,,,,Y,25/02/2023 09:07,ABODEN,24/02/2023,2022,11,DBYRNE,24/02/2023 15:23,N,N
************5113,6,Mr Duncan J Byrne,U,Duncan Byrne,9858,C,9858,24/01/2023,2022,10,24/02/2023,2022,11,2022,11,91.00,15.17,75.83,B,20%,2022,11,Y,154482167,Taylors Of Cleveleys LTD,2x Tray Hot Pot 1x Tray Veg Hot pot Paper plates / Cutelry Total - 91.00,Other,3131,46842,,,People and Places,People and Places,Y,24/02/2023 16:21,DBYRNE,6923,7586,N,,,,Y,25/02/2023 09:07,ABODEN,24/02/2023,2022,11,DBYRNE,24/02/2023 15:34,N,N
************5113,6,Mr Duncan J Byrne,U,Duncan Byrne,9951,C,9951,30/01/2023,2022,10,04/03/2023,2022,12,2022,12,439.90,73.32,366.58,B,20%,2022,12,Y,373142903,Zoom Video Communications Inc.,Annual Subscription to Zoom - 439.90,Other,3131,46700,,,People and Places,People and Places,Y,04/03/2023 14:14,DBYRNE,6974,7640,N,,,,Y,29/03/2023 21:06,ABODEN,04/03/2023,2022,12,DBYRNE,04/03/2023 14:13,N,N
************5113,6,Mr Duncan J Byrne,U,Duncan Byrne,9862,C,9862,17/02/2023,2022,11,24/02/2023,2022,11,2022,11,9.67,1.61,8.06,B,20%,2022,11,Y,322950373,Fast Fix Workshop Ltd,3x Brushes - 9.67 (above for use in WECP Cottage Garden),Other,3130,40100,,,People and Places,People and Places,Y,02/03/2023 11:34,CCROOK,6936,7589,N,,,,Y,02/03/2023 11:58,ABODEN,24/02/2023,2022,11,DBYRNE,24/02/2023 16:18,N,N
************5113,6,Mr Duncan J Byrne,U,Duncan Byrne,9861,C,9861,17/02/2023,2022,11,24/02/2023,2022,11,2022,11,25.87,0.00,25.87,C,0%,2022,11,,,The Plant Place,1x Herb Plant -  1.59 20x Chitting Potatoes - 2.40 2x Packet Bulbs - 5.98 7x Packs Seeds - 15.90 (above for WECP Garden),Other,3130,21065,,,People and Places,People and Places,Y,02/03/2023 11:37,CCROOK,6950,7588,N,,,,Y,02/03/2023 11:58,ABODEN,24/02/2023,2022,11,DBYRNE,24/02/2023 16:10,N,N
************5113,6,Mr Duncan J Byrne,U,Duncan Byrne,9860,C,9860,17/02/2023,2022,11,24/02/2023,2022,11,2022,11,70.41,11.74,58.67,B,20%,2022,11,Y,733097336,The Plant Place,Seed Compost - 5.49 Chicken Manure - 4.99 Potting Cell Trays - 4.99 2x Secateurs - 39.98 2x Seed Trays - 3.98 String - 3.49 Canes - 7.49 (above for WECP Garden),Other,3130,21065,,,People and Places,People and Places,Y,02/03/2023 11:37,CCROOK,6950,7588,N,,,,Y,02/03/2023 11:58,ABODEN,24/02/2023,2022,11,DBYRNE,24/02/2023 16:05,N,N
************5113,6,Mr Duncan J Byrne,U,Duncan Byrne,9859,C,9859,17/02/2023,2022,11,24/02/2023,2022,11,2022,11,134.55,22.43,112.12,B,20%,2022,11,Y,733097336,The Plant Place,Garden Mesh - 134.55 (above for screening Bee Area at WECP),Other,3130,21065,,,People and Places,People and Places,Y,02/03/2023 11:34,CCROOK,6935,7587,N,,,,Y,02/03/2023 11:58,ABODEN,24/02/2023,2022,11,DBYRNE,24/02/2023 15:42,N,N
************5113,6,Mr Duncan J Byrne,U,Duncan Byrne,9985,C,9985,02/03/2023,2022,12,14/03/2023,2022,12,2022,12,85.00,14.17,70.83,B,20%,2022,12,Y,974990653,hobbycraft.co.uk,Coloured Card/Paper - 29.00 Glue -  18.00 Scissors - 20.00 Sellotape - 10.00 Markers - 8.00 (above for Make A Bird Activity),Other,3131,42002,,,People and Places,People and Places,Y,29/03/2023 10:14,CCROOK,6998,7662,N,,,,Y,29/03/2023 21:06,ABODEN,14/03/2023,2022,12,DBYRNE,14/03/2023 14:32,N,N
************5113,6,Mr Duncan J Byrne,U,Duncan Byrne,9988,C,9988,11/03/2023,2022,12,14/03/2023,2022,12,2022,12,30.98,5.16,25.82,B,20%,2022,12,Y,322950373,Fast Fix Workshop Ltd,2x Padlock - 30.98 (for Civic 142 Cupbord & WECP),Other,3130,40100,,,People and Places,People and Places,Y,29/03/2023 10:16,CCROOK,7032,7664,N,,,,Y,29/03/2023 21:06,ABODEN,14/03/2023,2022,12,DBYRNE,14/03/2023 14:55,N,N
************5113,6,Mr Duncan J Byrne,U,Duncan Byrne,9987,C,9987,11/03/2023,2022,12,14/03/2023,2022,12,2022,12,52.00,8.67,43.33,B,20%,2022,12,Y,322950373,Fast Fix Workshop Ltd,Keys cut for the Mount - 52 (above for Georgia Luckett),Other,6953,42002,,,People and Places,People and Places,Y,29/03/2023 10:16,CCROOK,7032,7664,N,,,,Y,29/03/2023 21:06,ABODEN,14/03/2023,2022,12,DBYRNE,14/03/2023 14:52,N,N
************5113,6,Mr Duncan J Byrne,U,Duncan Byrne,10063,C,10063,15/03/2023,2022,12,06/04/2023,2023,1,2023,1,60.61,10.10,50.51,B,20%,2023,1,Y,320093700,Home Bargins,4 x Storage Box - 30.63 Trolley - 29.98 (above purchases for events / storage of stock),Other,3131,40100,,,People and Places,People and Places,Y,06/04/2023 10:58,DBYRNE,7050,7706,N,,,,Y,03/05/2023 17:46,ABODEN,06/04/2023,2023,1,DBYRNE,06/04/2023 10:40,N,N
************5113,6,Mr Duncan J Byrne,U,Duncan Byrne,10064,C,10064,17/03/2023,2022,12,06/04/2023,2023,1,2023,1,18.00,3.00,15.00,B,20%,2023,1,Y,322950373,Fast Fix Workshop Ltd,3x Keys Cut - 18.00 (above for the Mount - Georgia),Other,6953,42002,,,People and Places,People and Places,Y,06/04/2023 10:59,DBYRNE,7051,7707,N,,,,Y,03/05/2023 17:46,ABODEN,06/04/2023,2023,1,DBYRNE,06/04/2023 10:50,N,N
************4775,16,Gary Scott,S,Tracey Waistle,9785,C,9785,09/01/2023,2022,10,06/02/2023,2022,11,2022,11,288.00,48.00,240.00,B,20%,2022,10,Y,177952458,snap on - d morley,2 x l-ion battery,Other,6955,40100,,,People and Places,People and Places,Y,06/02/2023 15:13,JCARTRIDGE,6898,7532,N,,,,Y,13/02/2023 10:59,CGREEN,06/02/2023,2022,11,CCLOHERTYJONES,06/02/2023 14:08,N,N
************4775,16,Gary Scott,S,Tracey Waistle,9786,C,9786,12/01/2023,2022,10,06/02/2023,2022,11,2022,11,9.99,1.67,8.32,B,20%,2022,10,Y,GB190023639,amazon,battery for car key,Other,6953,30507,v83,,People and Places,People and Places,Y,06/02/2023 15:13,JCARTRIDGE,6898,7532,N,,,,Y,13/02/2023 10:59,CGREEN,06/02/2023,2022,11,CCLOHERTYJONES,06/02/2023 14:13,N,N
************4775,16,Gary Scott,S,Tracey Waistle,9653,C,9653,13/01/2023,2022,10,17/01/2023,2022,10,2022,10,237.77,39.63,198.14,B,20%,2022,10,Y,322861077,WALTON SUMMIT,filters for v90,Other,6902,30507,v90,,People and Places,People and Places,Y,06/02/2023 11:10,CCROOK,6885,7428,N,,,,Y,13/02/2023 10:59,CGREEN,17/01/2023,2022,10,CCLOHERTYJONES,17/01/2023 09:49,N,N
************4775,16,Gary Scott,S,Tracey Waistle,9690,C,9690,18/01/2023,2022,10,24/01/2023,2022,10,2022,10,52.46,8.74,43.72,B,20%,2022,10,Y,232555575,screwfix,"paint , roller and brushes",Other,6902,30507,v90,,People and Places,People and Places,Y,06/02/2023 11:10,CCROOK,6884,7457,N,,,,Y,13/02/2023 10:59,CGREEN,24/01/2023,2022,10,CCLOHERTYJONES,24/01/2023 16:56,N,N
************4775,16,Gary Scott,S,Tracey Waistle,9689,C,9689,19/01/2023,2022,10,24/01/2023,2022,10,2022,10,69.54,11.59,57.95,B,20%,2022,10,Y,992488166,autobitz,1 x sheet steel 4x3 1x angle 4x1/2 1x angle 5x 1/2,Other,6902,30507,v90,,People and Places,People and Places,Y,06/02/2023 11:10,CCROOK,6883,7457,N,,,,Y,13/02/2023 10:59,CGREEN,24/01/2023,2022,10,CCLOHERTYJONES,24/01/2023 16:54,N,N
************4775,16,Gary Scott,S,Tracey Waistle,9783,C,9783,24/01/2023,2022,10,06/02/2023,2022,11,2022,11,9.00,1.50,7.50,B,20%,2022,10,Y,992488166,autobitz,rear number plate v58,Other,3420,30507,v58,,People and Places,People and Places,Y,06/02/2023 15:13,JCARTRIDGE,6898,7532,N,,,,Y,13/02/2023 10:59,CGREEN,06/02/2023,2022,11,CCLOHERTYJONES,06/02/2023 14:03,N,N
************4775,16,Gary Scott,S,Tracey Waistle,9787,C,9787,24/01/2023,2022,10,06/02/2023,2022,11,2022,11,410.00,0.00,410.00,D,0%,2022,10,,,DVsA,200 mot slots,Other,3712,30502,,,People and Places,People and Places,Y,06/02/2023 15:13,JCARTRIDGE,6898,7532,N,,,,Y,13/02/2023 10:59,CGREEN,06/02/2023,2022,11,CCLOHERTYJONES,06/02/2023 14:18,N,N
************4775,16,Gary Scott,S,Tracey Waistle,9784,C,9784,30/01/2023,2022,10,06/02/2023,2022,11,2022,11,274.80,45.80,229.00,B,20%,2022,10,Y,177952458,snap on - d morley,1x combo light triple 2700lm,Other,6955,40100,,,People and Places,People and Places,Y,02/03/2023 11:37,CCROOK,6949,7532,N,,,,Y,31/03/2023 17:14,CCROOK,06/02/2023,2022,11,CCLOHERTYJONES,06/02/2023 14:06,N,N
************4775,16,Gary Scott,S,Tracey Waistle,9955,C,9955,15/02/2023,2022,11,07/03/2023,2022,12,2022,12,70.01,11.67,58.34,B,20%,2022,12,Y,992488166,auto biz,items on 2 advice notes 167817 167819 2 x gasket 2 brake Cleaner,Other,6955,30507,v59,,People and Places,People and Places,Y,09/03/2023 14:26,CCROOK,6980,7644,N,,,,Y,31/03/2023 17:14,CCROOK,07/03/2023,2022,12,CCLOHERTYJONES,07/03/2023 13:51,N,N
************4775,16,Gary Scott,S,Tracey Waistle,9956,C,9956,15/02/2023,2022,11,07/03/2023,2022,12,2022,12,96.04,16.01,80.03,B,20%,2022,12,Y,277263240,eriks,taper roller bearing,Other,6953,42002,,,People and Places,People and Places,Y,09/03/2023 14:26,CCROOK,6980,7644,N,,,,Y,31/03/2023 17:14,CCROOK,07/03/2023,2022,12,CCLOHERTYJONES,07/03/2023 13:55,N,N
************4775,16,Gary Scott,S,Tracey Waistle,9957,C,9957,17/02/2023,2022,11,07/03/2023,2022,12,2022,12,35.00,0.00,35.00,D,0%,2022,12,,,skills and education group,MOt training - Darren,Other,6955,17003,,,People and Places,People and Places,Y,09/03/2023 14:26,CCROOK,6980,7644,N,,,,Y,31/03/2023 17:14,CCROOK,07/03/2023,2022,12,CCLOHERTYJONES,07/03/2023 14:20,N,N
************4775,16,Gary Scott,S,Tracey Waistle,9958,C,9958,17/02/2023,2022,11,07/03/2023,2022,12,2022,12,35.00,0.00,35.00,D,0%,2022,12,,,skill and education Group,Mot training - RON,Other,6955,17003,,,People and Places,People and Places,Y,09/03/2023 14:26,CCROOK,6980,7644,N,,,,Y,31/03/2023 17:14,CCROOK,07/03/2023,2022,12,CCLOHERTYJONES,07/03/2023 14:21,N,N
************4775,16,Gary Scott,S,Tracey Waistle,9959,C,9959,17/02/2023,2022,11,07/03/2023,2022,12,2022,12,35.00,0.00,35.00,D,0%,2022,12,,,skills and education group,MOT training - Gary,Other,6955,17003,,,People and Places,People and Places,Y,09/03/2023 14:26,CCROOK,6980,7644,N,,,,Y,31/03/2023 17:14,CCROOK,07/03/2023,2022,12,CCLOHERTYJONES,07/03/2023 14:22,N,N
************4775,16,Gary Scott,S,Tracey Waistle,9960,C,9960,22/02/2023,2022,11,07/03/2023,2022,12,2022,12,809.40,134.90,674.50,B,20%,2022,12,Y,734330556,gemco,handlamp charger,Other,3712,40100,,,People and Places,People and Places,Y,09/03/2023 14:26,CCROOK,6980,7644,N,,,,Y,31/03/2023 17:14,CCROOK,07/03/2023,2022,12,CCLOHERTYJONES,07/03/2023 14:24,N,N
************4775,16,Gary Scott,S,Tracey Waistle,10044,C,10044,20/03/2023,2022,12,30/03/2023,2022,12,2022,12,9.00,1.50,7.50,B,20%,2022,12,Y,992488166,autobitz,front number plate v68,Other,6902,30507,v68,,People and Places,People and Places,Y,30/03/2023 15:42,CCROOK,7042,7695,N,,,,Y,31/03/2023 17:14,CCROOK,30/03/2023,2022,12,CCLOHERTYJONES,30/03/2023 15:31,N,N
************4775,16,Gary Scott,S,Tracey Waistle,10003,C,10003,20/03/2023,2022,12,21/03/2023,2022,12,2022,12,97.50,0.00,97.50,D,0%,2022,12,,,DVLA,Road Tax V58,Other,3420,30502,v58,,People and Places,People and Places,Y,29/03/2023 10:14,CCROOK,7002,7675,N,,,,Y,31/03/2023 17:14,CCROOK,21/03/2023,2022,12,CCLOHERTYJONES,21/03/2023 16:49,N,N
************4775,16,Gary Scott,S,Tracey Waistle,10004,C,10004,20/03/2023,2022,12,21/03/2023,2022,12,2022,12,292.50,0.00,292.50,D,0%,2022,12,,,DVLA,road tax v68,Other,6902,30502,v68,,People and Places,People and Places,Y,29/03/2023 10:14,CCROOK,7001,7676,N,,,,Y,31/03/2023 17:14,CCROOK,21/03/2023,2022,12,CCLOHERTYJONES,21/03/2023 17:19,N,N
************4775,16,Gary Scott,S,Tracey Waistle,10001,C,10001,20/03/2023,2022,12,21/03/2023,2022,12,2022,12,302.50,0.00,302.50,D,0%,2022,12,,,DVLA,Road Tax v39,Other,6902,30502,v39,,People and Places,People and Places,Y,29/03/2023 10:14,CCROOK,7000,7675,N,,,,Y,31/03/2023 17:14,CCROOK,21/03/2023,2022,12,CCLOHERTYJONES,21/03/2023 16:43,N,N
************4775,16,Gary Scott,S,Tracey Waistle,10002,C,10002,20/03/2023,2022,12,21/03/2023,2022,12,2022,12,302.50,0.00,302.50,D,0%,2022,12,,,DVLA,road Tax v70,Other,3420,30502,v70,,People and Places,People and Places,Y,29/03/2023 10:14,CCROOK,7003,7675,N,,,,Y,31/03/2023 17:14,CCROOK,21/03/2023,2022,12,CCLOHERTYJONES,21/03/2023 16:45,N,N
************4775,16,Gary Scott,S,Tracey Waistle,10049,C,10049,23/03/2023,2022,12,30/03/2023,2022,12,2022,12,3.99,0.67,3.32,B,20%,2022,12,Y,GB131363546,Amazon,Chest Waders INV-GB-157346541-2023-15,Other,3370,46810,,,People and Places,People and Places,Y,30/03/2023 15:57,CCROOK,7044,7698,N,,,,Y,31/03/2023 17:14,CCROOK,30/03/2023,2022,12,TWAISTLE,30/03/2023 15:57,N,N
************4775,16,Gary Scott,S,Tracey Waistle,10048,C,10048,23/03/2023,2022,12,30/03/2023,2022,12,2022,12,706.95,0.00,706.95,C,0%,2022,12,,GB131363546,Amazon,Chest Waders INV-GB-157346541-2023-15,Other,3370,46810,,,People and Places,People and Places,Y,30/03/2023 15:57,CCROOK,7044,7698,N,,,,Y,31/03/2023 17:14,CCROOK,30/03/2023,2022,12,TWAISTLE,30/03/2023 15:55,N,N
************4775,16,Gary Scott,S,Tracey Waistle,10020,C,10020,27/03/2023,2022,12,28/03/2023,2022,12,2022,12,292.50,0.00,292.50,D,0%,2022,12,,,DVLA,Road Tax v 64,Other,6905,30502,v64,,People and Places,People and Places,Y,29/03/2023 10:14,CCROOK,6999,7682,N,,,,Y,31/03/2023 17:14,CCROOK,28/03/2023,2022,12,CCLOHERTYJONES,28/03/2023 13:29,N,N
************4775,16,Gary Scott,S,Tracey Waistle,10027,C,10027,27/03/2023,2022,12,28/03/2023,2022,12,2022,12,480.00,80.00,400.00,B,20%,2022,12,Y,177952458,snap on - d morley,5 x H5R WPRK 100LM,Other,2300,40100,dos,,People and Places,People and Places,Y,30/03/2023 15:16,CCROOK,7041,7684,N,,,,Y,31/03/2023 17:14,CCROOK,28/03/2023,2022,12,CCLOHERTYJONES,28/03/2023 14:34,N,N
************0987,21,Mr David Twiss,S,Tracey Waistle,9691,C,9691,10/01/2023,2022,10,24/01/2023,2022,10,2022,10,54.00,9.00,45.00,B,20%,2022,10,,,HUWS GRAY LTD,10 x crane bags for stock,Other,3260,42002,,,People and Places,People and Places,Y,06/02/2023 11:10,CCROOK,6886,7458,N,,,,Y,06/02/2023 11:59,GSCOTT,24/01/2023,2022,10,CCLOHERTYJONES,24/01/2023 16:59,N,N
************0987,21,Mr David Twiss,S,Tracey Waistle,9820,C,9820,25/01/2023,2022,10,07/02/2023,2022,11,2022,11,168.00,28.00,140.00,B,20%,2022,10,Y,713607454,HUWS GRAY LTD,ITEMS ON ADVICE NOTE 65554,Other,3260,21002,,,People and Places,People and Places,Y,08/02/2023 15:21,JCARTRIDGE,6910,7557,N,,,,Y,09/02/2023 09:36,GSCOTT,07/02/2023,2022,11,CCLOHERTYJONES,07/02/2023 17:09,N,N
************0987,21,Mr David Twiss,S,Tracey Waistle,9817,C,9817,27/01/2023,2022,10,07/02/2023,2022,11,2022,11,12.98,2.16,10.82,B,20%,2022,10,Y,408556737,toolstation,pressure sprayer,Other,3260,42002,,,People and Places,People and Places,Y,02/03/2023 11:34,CCROOK,6941,7557,N,,,,Y,02/03/2023 13:30,GSCOTT,07/02/2023,2022,11,CCLOHERTYJONES,07/02/2023 17:03,N,N
************0987,21,Mr David Twiss,S,Tracey Waistle,9822,C,9822,30/01/2023,2022,10,07/02/2023,2022,11,2022,11,359.95,59.99,299.96,B,20%,2022,10,Y,713607454,HUWS GRAY LTD,TIMBER AND SCREWS,Other,3260,21002,,,People and Places,People and Places,Y,02/03/2023 11:34,CCROOK,6937,7557,N,,,,Y,02/03/2023 13:30,GSCOTT,07/02/2023,2022,11,CCLOHERTYJONES,07/02/2023 17:12,N,N
************0987,21,Mr David Twiss,S,Tracey Waistle,9819,C,9819,01/02/2023,2022,11,07/02/2023,2022,11,2022,11,-3.50,0.00,-3.50,D,0%,2022,11,,,toolstation,REFUND OF DIF. FROM DIAMOND BLADE TO CORRECT TOOL,Other,3260,21002,,,People and Places,People and Places,Y,02/03/2023 11:34,CCROOK,6939,7557,N,,,,Y,02/03/2023 13:30,GSCOTT,07/02/2023,2022,11,CCLOHERTYJONES,07/02/2023 17:07,N,N
************0987,21,Mr David Twiss,S,Tracey Waistle,9818,C,9818,01/02/2023,2022,11,07/02/2023,2022,11,2022,11,25.49,4.25,21.24,B,20%,2022,11,Y,408556737,toolstation,DIAMOND BLADE,Other,3260,21002,,,People and Places,People and Places,Y,02/03/2023 11:34,CCROOK,6938,7557,N,,,,Y,02/03/2023 13:30,GSCOTT,07/02/2023,2022,11,CCLOHERTYJONES,07/02/2023 17:05,N,N
************0987,21,Mr David Twiss,S,Tracey Waistle,9821,C,9821,02/02/2023,2022,11,07/02/2023,2022,11,2022,11,234.14,39.02,195.12,B,20%,2022,11,Y,713607454,HUWS GRAY LTD,PLYWOOD,Other,3260,21002,,,People and Places,People and Places,Y,02/03/2023 11:34,CCROOK,6940,7557,N,,,,Y,02/03/2023 13:30,GSCOTT,07/02/2023,2022,11,CCLOHERTYJONES,07/02/2023 17:10,N,N
************0987,21,Mr David Twiss,S,Tracey Waistle,10006,C,10006,06/03/2023,2022,12,21/03/2023,2022,12,2022,12,138.46,23.08,115.38,B,20%,2022,12,Y,713607454,huws gray,trowels and crane bags,Other,4191,28050,,,People and Places,People and Places,Y,29/03/2023 10:14,CCROOK,7007,7677,N,,,,Y,29/03/2023 10:43,GSCOTT,21/03/2023,2022,12,CCLOHERTYJONES,21/03/2023 17:24,N,N
************0987,21,Mr David Twiss,S,Tracey Waistle,10030,C,10030,20/03/2023,2022,12,28/03/2023,2022,12,2022,12,283.01,47.17,235.84,B,20%,2022,12,Y,713607454,huws gray,timber and posts,Other,6953,42002,,,People and Places,People and Places,Y,29/03/2023 10:14,CCROOK,7004,7686,N,,,,Y,29/03/2023 10:43,GSCOTT,28/03/2023,2022,12,CCLOHERTYJONES,28/03/2023 14:49,N,N
************0987,21,Mr David Twiss,S,Tracey Waistle,10029,C,10029,22/03/2023,2022,12,28/03/2023,2022,12,2022,12,171.49,28.58,142.91,B,20%,2022,12,Y,713607454,huws gray,timber and screws,Other,6953,42002,,,People and Places,People and Places,Y,29/03/2023 10:14,CCROOK,7010,7686,N,,,,Y,29/03/2023 10:43,GSCOTT,28/03/2023,2022,12,CCLOHERTYJONES,28/03/2023 14:44,N,N
************0987,21,Mr David Twiss,S,Tracey Waistle,10032,C,10032,23/03/2023,2022,12,28/03/2023,2022,12,2022,12,253.79,42.30,211.49,B,20%,2022,12,Y,713607454,huws gray,"saw, timber post",Other,6953,42002,,,People and Places,People and Places,Y,29/03/2023 10:14,CCROOK,7005,7686,N,,,,Y,29/03/2023 10:43,GSCOTT,28/03/2023,2022,12,CCLOHERTYJONES,28/03/2023 14:59,N,N
************0987,21,Mr David Twiss,S,Tracey Waistle,10028,C,10028,23/03/2023,2022,12,28/03/2023,2022,12,2022,12,269.40,44.90,224.50,B,20%,2022,12,Y,394121263,CHADWICKS,DOORS,Other,6953,42002,,,People and Places,People and Places,Y,29/03/2023 10:14,CCROOK,7006,7685,N,,,,Y,29/03/2023 10:43,GSCOTT,28/03/2023,2022,12,CCLOHERTYJONES,28/03/2023 14:42,N,N
************0987,21,Mr David Twiss,S,Tracey Waistle,10033,C,10033,24/03/2023,2022,12,28/03/2023,2022,12,2022,12,9.00,1.50,7.50,B,20%,2022,12,Y,149520855,J.W. Fish,items to fix boating lakes door,Other,3260,42002,,,People and Places,People and Places,Y,29/03/2023 10:14,CCROOK,7009,7686,N,,,,Y,29/03/2023 10:43,GSCOTT,28/03/2023,2022,12,CCLOHERTYJONES,28/03/2023 15:12,N,N
************0987,21,Mr David Twiss,S,Tracey Waistle,10031,C,10031,27/03/2023,2022,12,28/03/2023,2022,12,2022,12,90.00,15.00,75.00,B,20%,2022,12,Y,713607454,huws gray,timber posts and screws,Other,6953,42002,,,People and Places,People and Places,Y,29/03/2023 10:14,CCROOK,7008,7686,N,,,,Y,29/03/2023 10:43,GSCOTT,28/03/2023,2022,12,CCLOHERTYJONES,28/03/2023 14:52,N,N
************6873,26,Miss Susan J Houton,U,Susan Houton,9652,C,9652,02/01/2023,2022,10,16/01/2023,2022,10,2023,1,190.00,0.00,190.00,D,0%,2022,10,,,Security Industry Authority (SIA),SIA Licence for Neil Greenwood. Ref: 1218838637772,Other,3361,17012,,,People and Places,People and Places,Y,17/01/2023 09:07,JCARTRIDGE,6855,7427,N,,,,P,17/01/2023 09:07,NGREENWOOD,,0,0,SHOUTON,16/01/2023 16:42,N,R
************6873,26,Miss Susan J Houton,U,Susan Houton,9679,C,9679,20/01/2023,2022,10,23/01/2023,2022,10,2023,1,190.00,0.00,190.00,D,0%,2022,10,Y,,Security Industry Authority (SIA),Non Front Line SIA Badge - Cllr Berry,Other,3361,17012,,,People and Places,People and Places,A,06/02/2023 11:10,CCROOK,6887,7447,N,,,,P,,NGREENWOOD,,0,0,SHOUTON,23/01/2023 09:35,N,R
************6873,26,Miss Susan J Houton,U,Susan Houton,9865,C,9865,24/02/2023,2022,11,27/02/2023,2022,11,2023,1,19.62,3.27,16.35,B,20%,2022,11,Y,362012792,ASDA STORES LTD,"Wipes, stationery & chocolate digestives",Other,3361,14010,,,People and Places,People and Places,Y,02/03/2023 11:39,CCROOK,6952,7591,N,,,,P,02/03/2023 11:39,NGREENWOOD,,0,0,SHOUTON,27/02/2023 12:22,N,R
************6873,26,Miss Susan J Houton,U,Susan Houton,9864,C,9864,24/02/2023,2022,11,27/02/2023,2022,11,2023,1,19.63,0.00,19.63,D,0%,2022,11,Y,362012792,ASDA STORES LTD,Biscuits & tea,Other,3361,14010,,,People and Places,People and Places,Y,02/03/2023 11:39,CCROOK,6952,7591,N,,,,P,02/03/2023 11:39,NGREENWOOD,,0,0,SHOUTON,27/02/2023 12:20,N,R
************9017,27,Mark Thomason,S,Tracey Waistle,9832,C,9832,10/01/2023,2022,10,14/02/2023,2022,11,2022,11,89.54,14.92,74.62,B,20%,2022,10,Y,713607454,HUWS GRAY LTD,GATE POSTS,Other,6953,42002,,,People and Places,People and Places,Y,20/02/2023 09:38,JCARTRIDGE,6916,7565,N,,,,Y,20/02/2023 12:01,GSCOTT,14/02/2023,2022,11,CCLOHERTYJONES,14/02/2023 15:53,N,N
************9017,27,Mark Thomason,S,Tracey Waistle,9831,C,9831,18/01/2023,2022,10,14/02/2023,2022,11,2022,11,16.00,2.67,13.33,B,20%,2022,10,Y,713607454,HUWS GRAY LTD,solvent cleaner for benches,Other,4220,21004,,,People and Places,People and Places,Y,20/02/2023 09:38,JCARTRIDGE,6916,7565,N,,,,Y,20/02/2023 12:01,GSCOTT,14/02/2023,2022,11,CCLOHERTYJONES,14/02/2023 15:51,N,N
************9017,27,Mark Thomason,S,Tracey Waistle,9833,C,9833,25/01/2023,2022,10,14/02/2023,2022,11,2022,11,68.26,11.38,56.88,B,20%,2022,10,Y,713607454,HUWS GRAY LTD,TIMBER FOR BENCH,Other,4220,21004,,,People and Places,People and Places,Y,20/02/2023 09:38,JCARTRIDGE,6916,7565,N,,,,Y,20/02/2023 12:01,GSCOTT,14/02/2023,2022,11,CCLOHERTYJONES,14/02/2023 15:56,N,N
************9017,27,Mark Thomason,S,Tracey Waistle,9830,C,9830,07/02/2023,2022,11,14/02/2023,2022,11,2022,11,220.32,36.72,183.60,B,20%,2022,11,Y,713607454,HUWS GRAY LTD,plywood for chatsworth Roof,Other,3260,21002,,,People and Places,People and Places,Y,02/03/2023 11:34,CCROOK,6942,7565,N,,,,Y,02/03/2023 13:28,GSCOTT,14/02/2023,2022,11,CCLOHERTYJONES,14/02/2023 15:50,N,N
************9017,27,Mark Thomason,S,Tracey Waistle,9961,C,9961,08/02/2023,2022,11,07/03/2023,2022,12,2022,12,246.70,41.12,205.58,B,20%,2022,12,Y,713607454,huws gray,various items,Other,4191,28050,,,People and Places,People and Places,Y,09/03/2023 14:32,CCROOK,6982,7645,N,,,,Y,09/03/2023 16:08,GSCOTT,07/03/2023,2022,12,CCLOHERTYJONES,07/03/2023 14:29,N,N
************9017,27,Mark Thomason,S,Tracey Waistle,9989,C,9989,16/02/2023,2022,11,14/03/2023,2022,12,2022,12,56.12,9.35,46.77,B,20%,2022,12,Y,153440783,martin brown paints Ltd,paint,Other,3061,21002,,,People and Places,People and Places,Y,20/03/2023 11:12,JCARTRIDGE,6994,7665,N,,,,Y,20/03/2023 15:35,GSCOTT,14/03/2023,2022,12,CCLOHERTYJONES,14/03/2023 16:30,N,N
************9017,27,Mark Thomason,S,Tracey Waistle,10058,C,10058,27/03/2023,2022,12,30/03/2023,2022,12,2023,1,39.63,6.61,33.02,B,20%,2022,12,Y,713607454,HUWS GRAY LTD,Materials R16600 Invoice no: S5L55601,Other,3260,42002,,,People and Places,People and Places,Y,30/03/2023 16:36,CCROOK,7046,7701,N,,,,Y,09/05/2023 14:02,GSCOTT,01/04/2023,2023,1,TWAISTLE,30/03/2023 16:33,N,R
************1416,28,Emma Lyons,U,Emma Lyons,9911,C,9911,02/01/2023,2022,10,02/03/2023,2022,12,2022,12,36.85,6.14,30.71,B,20%,2022,12,,,AWS,Web hosting for Fleetwood Market,Other,3721,46104,,,People and Places,People and Places,Y,02/03/2023 10:53,BMCDONOUGH,6931,7603,N,,,,Y,02/03/2023 11:13,MHESKETH,02/03/2023,2022,12,BMCDONOUGH,02/03/2023 10:43,N,N
************1416,28,Emma Lyons,U,Emma Lyons,9913,C,9913,02/01/2023,2022,10,02/03/2023,2022,12,2022,12,184.13,0.00,184.13,R,0%,2022,12,,,Mailchimp,Mailchimp subscription fees,Other,6501,,,,People and Places,People and Places,Y,02/03/2023 10:53,BMCDONOUGH,6932,7604,N,,,,Y,02/03/2023 11:13,MHESKETH,02/03/2023,2022,12,BMCDONOUGH,02/03/2023 10:45,N,N
************1416,28,Emma Lyons,U,Emma Lyons,9914,C,9914,03/01/2023,2022,10,02/03/2023,2022,12,2022,12,20.24,0.00,20.24,R,0%,2022,12,,,Facebook,Paid Social Facebook,Other,3040,46100,,,People and Places,People and Places,Y,02/03/2023 10:53,BMCDONOUGH,6933,7605,N,,,,Y,02/03/2023 11:13,MHESKETH,02/03/2023,2022,12,BMCDONOUGH,02/03/2023 10:52,N,N
************1859,31,Mr J Pearson,U,Jonny Pearson,9808,C,9808,11/01/2023,2022,10,07/02/2023,2022,11,2022,11,106.40,0.00,106.40,R,0%,2022,10,,,FS MYTHICSOFT,x1 FileLocator Pro - Floating License (Upgrade 1 year),Other,6404,43500,43500,,Resources,Resources,Y,07/02/2023 15:35,JPEARSON,6904,7550,N,,,,Y,07/02/2023 16:26,LBROPHY,07/02/2023,2022,11,JPEARSON,07/02/2023 15:35,N,N
************2135,32,Miss O F Cordingley,U,Olivia Cordingley,9798,C,9798,26/01/2023,2022,10,07/02/2023,2022,11,2022,11,120.82,0.00,120.82,R,0%,2022,10,,,Linkedin,Linkedin Recruiter Lite Monthly Subscription,Other,6401,15200,,,Resources,Resources,Y,07/02/2023 11:44,OCORDINGLEY,6899,7543,N,,,,Y,09/02/2023 12:07,JBILLINGTON,07/02/2023,2022,11,OCORDINGLEY,07/02/2023 11:43,N,N
************2135,32,Miss O F Cordingley,U,Olivia Cordingley,9970,C,9970,02/02/2023,2022,11,09/03/2023,2022,12,2022,12,440.80,0.00,440.80,R,0%,2022,12,,,Linkedin,LinkedIn Advertising - Head of Assets & Estates Surveyor,Other,6601,15200,,,Resources,Resources,Y,09/03/2023 09:17,OCORDINGLEY,6977,7647,N,,,,Y,09/03/2023 09:50,JBILLINGTON,09/03/2023,2022,12,OCORDINGLEY,09/03/2023 09:16,N,N
************2135,32,Miss O F Cordingley,U,Olivia Cordingley,9971,C,9971,10/02/2023,2022,11,09/03/2023,2022,12,2022,12,440.96,0.00,440.96,R,0%,2022,12,,,Linkedin,LinkedIn Advertising - Head of Assets & Estates Surveyor,Other,6601,15200,,,Resources,Resources,Y,09/03/2023 09:22,OCORDINGLEY,6978,7648,N,,,,Y,09/03/2023 09:50,JBILLINGTON,09/03/2023,2022,12,OCORDINGLEY,09/03/2023 09:22,N,N
************2135,32,Miss O F Cordingley,U,Olivia Cordingley,10037,C,10037,01/03/2023,2022,12,29/03/2023,2022,12,2023,1,120.82,0.00,120.82,R,0%,2022,12,,,Linkedin,RecruiterLite Monthly Subscription,Other,6401,15200,,,Resources,Resources,Y,29/03/2023 16:23,JCARTRIDGE,7036,7689,N,,,,Y,02/05/2023 17:03,JBILLINGTON,01/04/2023,2023,1,OCORDINGLEY,29/03/2023 16:20,N,R
************2135,32,Miss O F Cordingley,U,Olivia Cordingley,10035,C,10035,01/03/2023,2022,12,28/03/2023,2022,12,2022,12,310.16,0.00,310.16,R,0%,2022,12,,,Linkedin,LinkedIn Advertising - Estates Surveyor 310.16,Other,6601,15200,,,Resources,Resources,Y,29/03/2023 10:26,JCARTRIDGE,7034,7687,N,,,,Y,29/03/2023 17:32,JBILLINGTON,28/03/2023,2022,12,OCORDINGLEY,28/03/2023 17:19,N,N
************2135,32,Miss O F Cordingley,U,Olivia Cordingley,10038,C,10038,01/03/2023,2022,12,29/03/2023,2022,12,2023,1,408.00,0.00,408.00,R,0%,2022,12,,,Indeed,Indeed Advertising - Parks Area Team Leader 408.00,Other,6953,15200,,,Resources,Resources,Y,29/03/2023 16:23,JCARTRIDGE,7036,7690,N,,,,Y,02/05/2023 17:03,JBILLINGTON,01/04/2023,2023,1,OCORDINGLEY,29/03/2023 16:22,N,R
************2135,32,Miss O F Cordingley,U,Olivia Cordingley,10034,C,10034,27/03/2023,2022,12,28/03/2023,2022,12,2022,12,111.72,0.00,111.72,R,0%,2022,12,,,Linkedin,LinkedIn Advertising - Head of Assets and Development 111.72,Other,6601,15200,,,Resources,Resources,Y,29/03/2023 10:26,JCARTRIDGE,7034,7687,N,,,,Y,29/03/2023 17:32,JBILLINGTON,28/03/2023,2022,12,OCORDINGLEY,28/03/2023 17:17,N,N
************2135,32,Miss O F Cordingley,U,Olivia Cordingley,10142,C,10142,29/03/2023,2022,12,26/05/2023,2023,2,2023,2,120.82,0.00,120.82,R,0%,2023,2,,,Linkedin,Recruiter Lite Monthly Subscription March,Other,6401,15200,,,Resources,Resources,Y,26/05/2023 15:47,OCORDINGLEY,7086,7766,N,,,,Y,03/07/2023 17:38,JBILLINGTON,26/05/2023,2023,2,OCORDINGLEY,26/05/2023 15:47,N,N
************6498,34,P J Holroyd,U,Pamela Holroyd,9848,C,9848,06/01/2023,2022,10,22/02/2023,2022,11,2022,11,205.99,34.33,171.66,B,20%,2022,11,Y,,TRAVELODGE,Ta for family Thomason,Other,5140,46814,,,Resources,Resources,Y,22/02/2023 13:48,PHOLROYD,6918,7577,N,,,,Y,23/02/2023 14:35,MBROADHURST,22/02/2023,2022,11,PHOLROYD,22/02/2023 13:20,N,N
************6498,34,P J Holroyd,U,Pamela Holroyd,9842,C,9842,09/01/2023,2022,10,22/02/2023,2022,11,2022,11,15.40,0.00,15.40,C,0%,2022,11,,,NORTHERN RAIL LTD,secure TA stephen jarvis,Other,5140,64002,exo,,Resources,Resources,Y,22/02/2023 13:17,PHOLROYD,6917,7571,N,,,,Y,22/02/2023 13:21,MBROADHURST,22/02/2023,2022,11,PHOLROYD,22/02/2023 11:20,N,N
************6498,34,P J Holroyd,U,Pamela Holroyd,9843,C,9843,10/01/2023,2022,10,22/02/2023,2022,11,2022,11,218.20,36.37,181.83,B,20%,2022,11,Y,,TRAVELODGE,Family accommodation thommason,Other,5140,46814,,,Resources,Resources,Y,22/02/2023 13:17,PHOLROYD,6917,7572,N,,,,Y,22/02/2023 13:21,MBROADHURST,22/02/2023,2022,11,PHOLROYD,22/02/2023 11:23,N,N
************6498,34,P J Holroyd,U,Pamela Holroyd,9850,C,9850,10/01/2023,2022,10,22/02/2023,2022,11,2022,11,218.20,36.37,181.83,B,20%,2022,11,,,TRAVELODGE,amy hulme family accommodation,Other,5140,46814,,,Resources,Resources,Y,22/02/2023 13:48,PHOLROYD,6918,7579,N,,,,Y,23/02/2023 14:35,MBROADHURST,22/02/2023,2022,11,PHOLROYD,22/02/2023 13:38,N,N
************6498,34,P J Holroyd,U,Pamela Holroyd,9844,C,9844,11/01/2023,2022,10,22/02/2023,2022,11,2022,11,36.80,6.13,30.67,B,20%,2022,11,,,NORTHERN RAIL LTD,Staff travel expenses,Travel and Accommodation,5140,33000,,,Resources,Resources,Y,22/02/2023 13:17,PHOLROYD,6917,7573,N,,,,Y,22/02/2023 13:21,MBROADHURST,22/02/2023,2022,11,PHOLROYD,22/02/2023 13:01,N,N
************6498,34,P J Holroyd,U,Pamela Holroyd,9845,C,9845,11/01/2023,2022,10,22/02/2023,2022,11,2022,11,39.75,6.63,33.12,B,20%,2022,11,,,TRAVELODGE,1 night placement Mr Trigg,Other,5140,46814,,,Resources,Resources,Y,22/02/2023 13:17,PHOLROYD,6917,7574,N,,,,Y,22/02/2023 13:21,MBROADHURST,22/02/2023,2022,11,PHOLROYD,22/02/2023 13:03,N,N
************6498,34,P J Holroyd,U,Pamela Holroyd,9852,C,9852,13/01/2023,2022,10,22/02/2023,2022,11,2022,11,7.70,0.00,7.70,C,0%,2022,11,,,NORTHERN RAIL LTD,Travel for interview (return),Other,5140,64002,exo,,Resources,Resources,Y,22/02/2023 13:48,PHOLROYD,6918,7581,N,,,,Y,23/02/2023 14:35,MBROADHURST,22/02/2023,2022,11,PHOLROYD,22/02/2023 13:47,N,N
************6498,34,P J Holroyd,U,Pamela Holroyd,9846,C,9846,17/01/2023,2022,10,22/02/2023,2022,11,2022,11,73.41,12.24,61.17,B,20%,2022,11,Y,,TRAVELODGE,Family accommodation thommason,Other,5140,46814,,,Resources,Resources,Y,22/02/2023 13:17,PHOLROYD,6917,7575,N,,,,Y,22/02/2023 13:21,MBROADHURST,22/02/2023,2022,11,PHOLROYD,22/02/2023 13:12,N,N
************6498,34,P J Holroyd,U,Pamela Holroyd,9847,C,9847,17/01/2023,2022,10,22/02/2023,2022,11,2022,11,111.14,18.52,92.62,B,20%,2022,11,Y,,TRAVELODGE,Family accommodation Thomasson,Other,5140,46814,,,Resources,Resources,Y,22/02/2023 13:17,PHOLROYD,6917,7576,N,,,,Y,22/02/2023 13:21,MBROADHURST,22/02/2023,2022,11,PHOLROYD,22/02/2023 13:15,N,N
************6498,34,P J Holroyd,U,Pamela Holroyd,9851,C,9851,17/01/2023,2022,10,22/02/2023,2022,11,2022,11,273.00,45.50,227.50,B,20%,2022,11,,,The President Hotel,D Hesford family accommodation,Other,5140,46814,,,Resources,Resources,Y,22/02/2023 13:48,PHOLROYD,6918,7580,N,,,,Y,23/02/2023 14:35,MBROADHURST,22/02/2023,2022,11,PHOLROYD,22/02/2023 13:40,N,N
************6498,34,P J Holroyd,U,Pamela Holroyd,9981,C,9981,03/02/2023,2022,11,13/03/2023,2022,12,2022,12,860.00,143.33,716.67,B,20%,2022,12,,,T C Estates,TC ESTATES - S. TRIPP RENT AND BOND,Other,5140,64002,,,Resources,Resources,Y,13/03/2023 10:45,PHOLROYD,6990,7658,N,,,,Y,13/03/2023 14:51,MBROADHURST,13/03/2023,2022,12,PHOLROYD,13/03/2023 10:39,N,N
************6498,34,P J Holroyd,U,Pamela Holroyd,9982,C,9982,07/02/2023,2022,11,13/03/2023,2022,12,2022,12,"1,225.00",204.17,"1,020.83",B,20%,2022,12,,,new oxford hotel,7 nights x 2 family rooms new oxford hotel,Other,5140,46814,,,Resources,Resources,Y,13/03/2023 10:45,PHOLROYD,6990,7659,N,,,,Y,13/03/2023 14:51,MBROADHURST,13/03/2023,2022,12,PHOLROYD,13/03/2023 10:42,N,N
************6498,34,P J Holroyd,U,Pamela Holroyd,9983,C,9983,24/02/2023,2022,11,13/03/2023,2022,12,2022,12,8.24,1.37,6.87,B,20%,2022,12,,,Trainline,Trainline- copeland,Other,5140,64002,,,Resources,Resources,Y,13/03/2023 10:45,PHOLROYD,6990,7660,N,,,,Y,13/03/2023 14:51,MBROADHURST,13/03/2023,2022,12,PHOLROYD,13/03/2023 10:44,N,N
************6498,34,P J Holroyd,U,Pamela Holroyd,10036,C,10036,07/03/2023,2022,12,29/03/2023,2022,12,2022,12,229.44,38.24,191.20,B,20%,2022,12,,,travel lodge,Ta for PN family Ogden,Other,5140,46814,,,Resources,Resources,Y,29/03/2023 11:51,PHOLROYD,7035,7688,N,,,,Y,29/03/2023 12:08,MBROADHURST,29/03/2023,2022,12,PHOLROYD,29/03/2023 11:50,N,N
************8505,35,ROBERT L GREAVES,S,Tracey Waistle,9693,C,9693,16/01/2023,2022,10,24/01/2023,2022,10,2022,10,57.36,9.56,47.80,B,20%,2022,10,Y,169404101,SHELL,fuel for T991,Other,6902,30511,t991,,People and Places,People and Places,Y,06/02/2023 11:10,CCROOK,6888,7460,N,,,,Y,06/02/2023 11:56,GSCOTT,24/01/2023,2022,10,CCLOHERTYJONES,24/01/2023 17:05,N,N
************8505,35,ROBERT L GREAVES,S,Tracey Waistle,9694,C,9694,17/01/2023,2022,10,24/01/2023,2022,10,2022,10,35.00,5.83,29.17,B,20%,2022,10,Y,416501973,the lock shop,1 x service/ repair to NE10 purple level padlock,Other,3260,42002,,,People and Places,People and Places,Y,06/02/2023 11:22,CCROOK,6896,7460,N,,,,Y,06/02/2023 11:56,GSCOTT,24/01/2023,2022,10,CCLOHERTYJONES,24/01/2023 17:07,N,N
************8505,35,ROBERT L GREAVES,S,Tracey Waistle,9695,C,9695,24/01/2023,2022,10,24/01/2023,2022,10,2022,10,40.80,6.80,34.00,B,20%,2022,10,,,HUWS GRAY LTD,coach screws hex head,Other,4210,21006,,,People and Places,People and Places,Y,06/02/2023 11:10,CCROOK,6889,7460,N,,,,Y,06/02/2023 11:56,GSCOTT,24/01/2023,2022,10,CCLOHERTYJONES,24/01/2023 17:09,N,N
************8505,35,ROBERT L GREAVES,S,Tracey Waistle,9838,C,9838,31/01/2023,2022,10,14/02/2023,2022,11,2022,11,"1,835.45",305.91,"1,529.54",B,20%,2022,11,Y,901636252,AITCH,various items,Other,6902,,,,People and Places,People and Places,Y,02/03/2023 11:40,CCROOK,6953,7567,N,,,,Y,02/03/2023 13:28,GSCOTT,14/02/2023,2022,11,CCLOHERTYJONES,14/02/2023 16:40,N,N
************8505,35,ROBERT L GREAVES,S,Tracey Waistle,9782,C,9782,02/02/2023,2022,11,06/02/2023,2022,11,2022,11,14.50,2.42,12.08,B,20%,2022,11,,,J W Fish LTD,brushes And shovels,Other,6902,40100,,,People and Places,People and Places,Y,02/03/2023 11:35,CCROOK,6944,7531,N,,,,Y,02/03/2023 13:28,GSCOTT,06/02/2023,2022,11,CCLOHERTYJONES,06/02/2023 13:53,N,N
************8505,35,ROBERT L GREAVES,S,Tracey Waistle,9965,C,9965,07/02/2023,2022,11,07/03/2023,2022,12,2022,12,622.42,103.74,518.68,B,20%,2022,12,Y,713607454,HUWS GRAY,items for marine hall car park,Other,4191,28050,,,People and Places,People and Places,Y,09/03/2023 14:31,CCROOK,6981,7646,N,,,,Y,09/03/2023 16:09,GSCOTT,07/03/2023,2022,12,CCLOHERTYJONES,07/03/2023 15:13,N,N
************8505,35,ROBERT L GREAVES,S,Tracey Waistle,9969,C,9969,14/02/2023,2022,11,07/03/2023,2022,12,2022,12,22.50,3.75,18.75,B,20%,2022,12,Y,394121263,blackpool power supllies,repair charge,Other,6902,40102,,,People and Places,People and Places,Y,09/03/2023 14:31,CCROOK,6981,7646,N,,,,Y,09/03/2023 16:09,GSCOTT,07/03/2023,2022,12,CCLOHERTYJONES,07/03/2023 15:21,N,N
************8505,35,ROBERT L GREAVES,S,Tracey Waistle,9963,C,9963,14/02/2023,2022,11,07/03/2023,2022,12,2022,12,43.32,7.22,36.10,B,20%,2022,12,Y,394121263,BLACKPOOL POWER TOOLS,RECONDITIONING DRILL 1,Other,6902,40102,,,People and Places,People and Places,Y,09/03/2023 14:31,CCROOK,6981,7646,N,,,,Y,09/03/2023 16:09,GSCOTT,07/03/2023,2022,12,CCLOHERTYJONES,07/03/2023 15:05,N,N
************8505,35,ROBERT L GREAVES,S,Tracey Waistle,9966,C,9966,14/02/2023,2022,11,07/03/2023,2022,12,2022,12,153.07,25.51,127.56,B,20%,2022,12,Y,394121263,chadwicks,6 brass padlocks,Other,3260,42002,,,People and Places,People and Places,Y,09/03/2023 14:31,CCROOK,6981,7646,N,,,,Y,09/03/2023 16:09,GSCOTT,07/03/2023,2022,12,CCLOHERTYJONES,07/03/2023 15:16,N,N
************8505,35,ROBERT L GREAVES,S,Tracey Waistle,9964,C,9964,15/02/2023,2022,11,07/03/2023,2022,12,2022,12,43.32,7.22,36.10,B,20%,2022,12,Y,394121263,BLACKPOOL POWER TOOLS,RECONDITIONING DRILL 2,Other,6902,40102,,,People and Places,People and Places,Y,09/03/2023 14:31,CCROOK,6981,7646,N,,,,Y,09/03/2023 16:09,GSCOTT,07/03/2023,2022,12,CCLOHERTYJONES,07/03/2023 15:11,N,N
************8505,35,ROBERT L GREAVES,S,Tracey Waistle,9967,C,9967,15/02/2023,2022,11,07/03/2023,2022,12,2022,12,238.01,39.67,198.34,B,20%,2022,12,Y,394121263,blackpool power tools,hammer drill,Other,6902,40100,,,People and Places,People and Places,Y,09/03/2023 14:31,CCROOK,6981,7646,N,,,,Y,09/03/2023 16:09,GSCOTT,07/03/2023,2022,12,CCLOHERTYJONES,07/03/2023 15:18,N,N
************8505,35,ROBERT L GREAVES,S,Tracey Waistle,9968,C,9968,16/02/2023,2022,11,07/03/2023,2022,12,2022,12,114.36,19.06,95.30,B,20%,2022,12,Y,394121263,blackpool power tools,machinery repair,Other,6902,40102,,,People and Places,People and Places,Y,09/03/2023 14:31,CCROOK,6981,7646,N,,,,Y,09/03/2023 16:09,GSCOTT,07/03/2023,2022,12,CCLOHERTYJONES,07/03/2023 15:20,N,N
************8505,35,ROBERT L GREAVES,S,Tracey Waistle,9962,C,9962,06/03/2023,2022,12,07/03/2023,2022,12,2022,12,34.49,5.75,28.74,B,20%,2022,12,Y,232555575,screwfix,bird spikes,Other,3260,21002,,,People and Places,People and Places,Y,29/03/2023 10:14,CCROOK,7014,7646,N,,,,Y,29/03/2023 10:42,GSCOTT,07/03/2023,2022,12,CCLOHERTYJONES,07/03/2023 15:02,N,N
************8505,35,ROBERT L GREAVES,S,Tracey Waistle,10009,C,10009,07/03/2023,2022,12,21/03/2023,2022,12,2022,12,59.99,10.00,49.99,B,20%,2022,12,Y,827639788,the defib pad,zoll AED plus battery pack,Other,3260,42002,,,People and Places,People and Places,Y,29/03/2023 10:14,CCROOK,7011,7678,N,,,,Y,29/03/2023 10:42,GSCOTT,21/03/2023,2022,12,CCLOHERTYJONES,21/03/2023 17:31,N,N
************8505,35,ROBERT L GREAVES,S,Tracey Waistle,10008,C,10008,07/03/2023,2022,12,21/03/2023,2022,12,2022,12,153.07,25.51,127.56,B,20%,2022,12,Y,394121263,chadwicks,padlocks,Other,3260,42002,,,People and Places,People and Places,Y,29/03/2023 10:14,CCROOK,7012,7678,N,,,,Y,29/03/2023 10:42,GSCOTT,21/03/2023,2022,12,CCLOHERTYJONES,21/03/2023 17:29,N,N
************8505,35,ROBERT L GREAVES,S,Tracey Waistle,10007,C,10007,07/03/2023,2022,12,21/03/2023,2022,12,2022,12,239.30,39.88,199.42,B,20%,2022,12,Y,713607454,huws gray,"silver sand, grit sand and multicem",Other,4191,28050,,,People and Places,People and Places,Y,29/03/2023 10:14,CCROOK,7015,7678,N,,,,Y,29/03/2023 10:42,GSCOTT,21/03/2023,2022,12,CCLOHERTYJONES,21/03/2023 17:27,N,N
************8505,35,ROBERT L GREAVES,S,Tracey Waistle,9990,C,9990,07/03/2023,2022,12,14/03/2023,2022,12,2022,12,"2,360.48",393.41,"1,967.07",B,20%,2022,12,Y,901636252,aitch,various goods Aitch,Other,6902,,,,People and Places,People and Places,Y,29/03/2023 10:14,CCROOK,7013,7666,N,,,,Y,29/03/2023 10:42,GSCOTT,14/03/2023,2022,12,CCLOHERTYJONES,14/03/2023 16:43,N,N
************8505,35,ROBERT L GREAVES,S,Tracey Waistle,10025,C,10025,16/03/2023,2022,12,28/03/2023,2022,12,2022,12,221.64,36.94,184.70,B,20%,2022,12,Y,416501973,the lock shop,1 x orange level padlock 6 green keys,Other,3260,42002,,,People and Places,People and Places,Y,29/03/2023 10:17,CCROOK,7033,7683,N,,,,Y,29/03/2023 10:42,GSCOTT,28/03/2023,2022,12,CCLOHERTYJONES,28/03/2023 14:24,N,N
************8505,35,ROBERT L GREAVES,S,Tracey Waistle,10024,C,10024,21/03/2023,2022,12,28/03/2023,2022,12,2022,12,48.91,8.15,40.76,B,20%,2022,12,Y,394121263,chadwicks,painter brushes,Other,3260,42002,,,People and Places,People and Places,Y,29/03/2023 10:14,CCROOK,7017,7683,N,,,,Y,29/03/2023 10:42,GSCOTT,28/03/2023,2022,12,CCLOHERTYJONES,28/03/2023 14:22,N,N
************8505,35,ROBERT L GREAVES,S,Tracey Waistle,10026,C,10026,23/03/2023,2022,12,28/03/2023,2022,12,2022,12,121.20,20.20,101.00,B,20%,2022,12,Y,416501973,the lock shop,1 burgundy lock -poulton,Other,6953,42002,,,People and Places,People and Places,Y,29/03/2023 10:17,CCROOK,7033,7683,N,,,,Y,29/03/2023 10:42,GSCOTT,28/03/2023,2022,12,CCLOHERTYJONES,28/03/2023 14:26,N,N
************8505,35,ROBERT L GREAVES,S,Tracey Waistle,10023,C,10023,23/03/2023,2022,12,28/03/2023,2022,12,2022,12,345.21,57.53,287.68,B,20%,2022,12,Y,416501973,the lock shop,2 euro dead lock cases and cylinders,Other,3260,42002,,,People and Places,People and Places,Y,29/03/2023 10:14,CCROOK,7016,7683,N,,,,Y,29/03/2023 10:42,GSCOTT,28/03/2023,2022,12,CCLOHERTYJONES,28/03/2023 14:10,N,N
************8505,35,ROBERT L GREAVES,S,Tracey Waistle,10021,C,10021,27/03/2023,2022,12,28/03/2023,2022,12,2022,12,7.00,1.17,5.83,B,20%,2022,12,Y,149520855,j.w. fish,2 keys,Other,3260,42002,,,People and Places,People and Places,Y,29/03/2023 10:14,CCROOK,7019,7683,N,,,,Y,29/03/2023 10:42,GSCOTT,28/03/2023,2022,12,CCLOHERTYJONES,28/03/2023 14:02,N,N
************8505,35,ROBERT L GREAVES,S,Tracey Waistle,10022,C,10022,27/03/2023,2022,12,28/03/2023,2022,12,2022,12,33.90,5.65,28.25,B,20%,2022,12,Y,416501973,the lock shop,2 burgundy keys,Other,6953,42002,,,People and Places,People and Places,Y,29/03/2023 10:14,CCROOK,7018,7683,N,,,,Y,29/03/2023 10:42,GSCOTT,28/03/2023,2022,12,CCLOHERTYJONES,28/03/2023 14:03,N,N
************8406,36,Mrs Carol Southern,U,Carol Southern,9979,C,9979,23/03/2023,2022,12,10/03/2023,2022,12,2022,12,131.94,21.99,109.95,B,20%,2022,12,,,amazon,Fit watches for the PASTA and HAF programmes,Other,3073,46104,,,People and Places,People and Places,Y,13/03/2023 09:51,CCROOK,6989,7656,N,,,,Y,13/03/2023 14:52,MBROADHURST,10/03/2023,2022,12,CSOUTHERN,10/03/2023 13:03,N,N
************9143,38,Julie Cartridge,U,Julie Cartridge,9680,C,9680,16/01/2023,2022,10,23/01/2023,2022,10,2022,10,240.00,40.00,200.00,B,20%,2022,10,,,Hex Hotel,Document Number FB008181 Accommodation for Wayne Clarke from 16/01/23-18/01/23 For Licensing Training Course,Travel and Accommodation,3341,17010,,,Resources,Resources,Y,06/02/2023 11:10,CCROOK,6890,7448,N,,,,Y,06/02/2023 11:49,VWILSON,23/01/2023,2022,10,JCARTRIDGE,23/01/2023 10:53,N,N
************9143,38,Julie Cartridge,U,Julie Cartridge,9954,C,9954,06/02/2023,2022,11,07/03/2023,2022,12,2022,12,90.00,0.00,90.00,D,0%,2022,12,,,Booking.com - Blakeney Guest House,Booking Reference : 419-936-661 Check-in : 13-Feb-23 Check-out : 15-Feb-23 Accommodation for Chris Hill,Travel and Accommodation,6202,33000,,,Resources,Resources,Y,07/03/2023 11:36,JCARTRIDGE,6976,7643,N,,,,Y,07/03/2023 12:38,VWILSON,07/03/2023,2022,12,JCARTRIDGE,07/03/2023 11:36,N,N
************9143,38,Julie Cartridge,U,Julie Cartridge,9953,C,9953,06/02/2023,2022,11,06/03/2023,2022,12,2022,12,140.82,0.00,140.82,C,0%,2022,12,,,TrainLine,Transaction ID: 542126173980 Invoice number: 542126173980 Train Tickets for Chris Hill Poulton-le-Fylde to Weston-Super-Mare Return on Monday 13th February 2023,Travel and Accommodation,6202,33000,,,Resources,Resources,Y,06/03/2023 16:33,JCARTRIDGE,6975,7642,N,,,,Y,07/03/2023 12:38,VWILSON,06/03/2023,2022,12,JCARTRIDGE,06/03/2023 16:27,N,N
************9143,38,Julie Cartridge,U,Julie Cartridge,9816,C,9816,07/02/2023,2022,11,07/02/2023,2022,11,2022,11,54.88,0.00,54.88,E,0%,2022,11,,,Eventbrite,Embedding Climate In Planning Conference Monday 20th February 2023 Len Harris,Other,3591,45300,,,Resources,Resources,Y,02/03/2023 11:35,CCROOK,6947,7556,N,,,,Y,02/03/2023 12:29,VWILSON,07/02/2023,2022,11,JCARTRIDGE,07/02/2023 16:34,N,N
************9143,38,Julie Cartridge,U,Julie Cartridge,9825,C,9825,13/02/2023,2022,11,13/02/2023,2022,11,2022,11,54.61,0.00,54.61,C,0%,2022,11,,,Train Line,Train Tickets for Andrew Robinson and Hannah McMillan Poulton - Manchester Piccadilly on 17/02/2023 returning the same day,Travel and Accommodation,6702,17012,,,Resources,Resources,Y,02/03/2023 11:35,CCROOK,6946,7560,N,,,,Y,02/03/2023 12:29,VWILSON,13/02/2023,2022,11,JCARTRIDGE,13/02/2023 11:54,N,N
************9143,38,Julie Cartridge,U,Julie Cartridge,9840,C,9840,15/02/2023,2022,11,20/02/2023,2022,11,2022,11,114.44,0.00,114.44,E,0%,2022,11,,,Coverdrone,Client Ref: 33481272 Invoice Ref: 521592582 Policy Number: CDA22161535GBP Renewal of annual drone specific insurance for public liability (compliant with EC 785/2004 regs),Other,8223,4020,,,Resources,Resources,Y,02/03/2023 11:35,CCROOK,6945,7569,N,,,,Y,02/03/2023 12:29,VWILSON,20/02/2023,2022,11,JCARTRIDGE,20/02/2023 09:36,N,N
************9143,38,Julie Cartridge,U,Julie Cartridge,10000,C,10000,14/03/2023,2022,12,21/03/2023,2022,12,2022,12,260.00,0.00,260.00,D,0%,2022,12,,,Civil Aviation Authority,Renewal of annual Operational Authorisation Licence for operation of drone technology as per renewal form submitted to the CAA.,Other,8223,4020,,,Resources,Resources,Y,29/03/2023 10:14,CCROOK,7020,7674,N,,,,Y,29/03/2023 12:04,VWILSON,21/03/2023,2022,12,JCARTRIDGE,21/03/2023 09:51,N,N
************8657,39,Mrs C Crook,U,Carly Crook,9935,C,9935,17/01/2023,2022,10,03/03/2023,2022,12,2022,12,201.60,33.60,168.00,B,20%,2022,12,Y,,MK HOTELS,MK Hotel london - Carl Green,Travel and Accommodation,6902,33000,,,Resources,Resources,Y,03/03/2023 14:12,CCROOK,6964,7624,N,,,,Y,03/03/2023 14:40,VWILSON,03/03/2023,2022,12,CCROOK,03/03/2023 14:12,N,N
************8657,39,Mrs C Crook,U,Carly Crook,9779,C,9779,23/01/2023,2022,10,06/02/2023,2022,11,2022,11,34.79,0.00,34.79,C,0%,2022,10,,,Trainline,Tickets London-Poulton for Carl Green 31/01/2023,Travel and Accommodation,8882,4028,,,Resources,Resources,Y,06/02/2023 11:41,CCROOK,6897,7529,N,,,,Y,22/02/2023 11:44,VWILSON,06/02/2023,2022,11,CCROOK,06/02/2023 11:37,N,N
************8657,39,Mrs C Crook,U,Carly Crook,9780,C,9780,23/01/2023,2022,10,06/02/2023,2022,11,2022,11,103.37,0.00,103.37,C,0%,2022,10,,,TRAINLINE,Tickets Poulton-Portsmouth Harbour 6th Fab 2023 Carl Green,Travel and Accommodation,8882,4022,,,Resources,Resources,Y,06/02/2023 11:41,CCROOK,6897,7529,N,,,,Y,22/02/2023 11:44,VWILSON,06/02/2023,2022,11,CCROOK,06/02/2023 11:40,N,N
************8657,39,Mrs C Crook,U,Carly Crook,9934,C,9934,23/01/2023,2022,10,03/03/2023,2022,12,2022,12,496.80,82.80,414.00,B,20%,2022,12,,,booking.com,Gunwhart Quays apartments - Carl Green,Travel and Accommodation,6902,33000,,,Resources,Resources,Y,03/03/2023 14:12,CCROOK,6964,7624,N,,,,Y,03/03/2023 14:40,VWILSON,03/03/2023,2022,12,CCROOK,03/03/2023 14:08,N,N
************8657,39,Mrs C Crook,U,Carly Crook,9893,C,9893,27/02/2023,2022,11,28/02/2023,2022,11,2022,11,39.43,0.00,39.43,E,0%,2022,11,,,Trainline,Train tickets for Chloe Cox,Travel and Accommodation,6905,33000,,,Resources,Resources,Y,02/03/2023 11:35,CCROOK,6948,7596,N,,,,Y,02/03/2023 12:27,VWILSON,28/02/2023,2022,11,CCROOK,28/02/2023 11:58,N,N
************8657,39,Mrs C Crook,U,Carly Crook,9937,C,9937,02/03/2023,2022,12,03/03/2023,2022,12,2022,12,25.67,0.00,25.67,E,0%,2022,12,,,TRAINLINE,Poulton-Liverpool Harry Grundy and Carl Green Friday 3rd March 2023,Travel and Accommodation,6902,33000,,,Resources,Resources,Y,29/03/2023 10:14,CCROOK,7024,7626,N,,,,Y,29/03/2023 12:04,VWILSON,03/03/2023,2022,12,CCROOK,03/03/2023 14:16,N,N
************8657,39,Mrs C Crook,U,Carly Crook,9933,C,9933,03/03/2023,2022,12,03/03/2023,2022,12,2022,12,53.40,8.90,44.50,B,20%,2022,12,Y,GB390709185,ticket tailor,Ticket tailor invoice 272105,Other,3131,46104,,,Resources,Resources,Y,29/03/2023 10:14,CCROOK,7023,7623,N,,,,Y,29/03/2023 12:03,VWILSON,03/03/2023,2022,12,CCROOK,03/03/2023 14:04,N,N
************8657,39,Mrs C Crook,U,Carly Crook,9952,C,9952,06/03/2023,2022,12,06/03/2023,2022,12,2022,12,24.00,4.00,20.00,B,20%,2022,12,Y,,VITALCODE LTD,VitalTax membership; for Andrew Palfreyman 06/03/2023-05/03/2024,Other,6402,43502,,,Resources,Resources,Y,29/03/2023 10:14,CCROOK,7022,7641,N,,,,Y,29/03/2023 12:04,VWILSON,06/03/2023,2022,12,CCROOK,06/03/2023 13:42,N,N
************8657,39,Mrs C Crook,U,Carly Crook,9984,C,9984,13/03/2023,2022,12,13/03/2023,2022,12,2022,12,"1,997.17",332.86,"1,664.31",B,20%,2022,12,Y,,INSTAPRINT,60 X Banners for elections,Other,2201,40100,,,Resources,Resources,Y,29/03/2023 10:14,CCROOK,7021,7661,N,,,,Y,29/03/2023 12:04,VWILSON,13/03/2023,2022,12,CCROOK,13/03/2023 12:37,N,N
************8657,39,Mrs C Crook,U,Carly Crook,10128,C,10128,29/03/2023,2022,12,10/05/2023,2023,2,2023,2,66.00,11.00,55.00,B,20%,2023,2,,,Ticket tailor,Ticket fees for March 2023,Other,3131,46104,,,Resources,Resources,Y,10/05/2023 16:23,CCROOK,7082,7757,N,,,,Y,11/05/2023 12:33,VWILSON,10/05/2023,2023,2,CCROOK,10/05/2023 16:13,N,N
************9358,40,Mrs Janet E Heald,U,Janet Heald,9839,C,9839,20/01/2023,2022,10,15/02/2023,2022,11,2022,11,2.30,0.00,2.30,D,0%,2022,10,,,asda,TDCI Gluten free rolls,Other,3040,41000,,,People and Places,People and Places,Y,15/02/2023 14:17,JHEALD,6913,7568,N,,,,Y,24/02/2023 18:47,JAROBINSON,15/02/2023,2022,11,JHEALD,15/02/2023 14:16,N,N
************9358,40,Mrs Janet E Heald,U,Janet Heald,9993,C,9993,15/02/2023,2022,11,15/03/2023,2022,12,2022,12,19.99,0.00,19.99,E,0%,2022,12,,,ebay,filter bags for hoover MH,Other,3040,40100,,,People and Places,People and Places,Y,15/03/2023 11:52,JHEALD,6992,7667,N,,,,Y,29/03/2023 17:45,JAROBINSON,15/03/2023,2022,12,JHEALD,15/03/2023 11:51,N,N
************9358,40,Mrs Janet E Heald,U,Janet Heald,9991,C,9991,28/02/2023,2022,11,15/03/2023,2022,12,2022,12,5.85,0.00,5.85,E,0%,2022,12,,,asda,MP wedding 28/2/23 flowers Phil Stead,Other,3040,40100,,,People and Places,People and Places,Y,29/03/2023 10:14,CCROOK,7025,7667,N,,,,Y,30/03/2023 15:19,JAROBINSON,15/03/2023,2022,12,JHEALD,15/03/2023 11:50,N,N
************9358,40,Mrs Janet E Heald,U,Janet Heald,9992,C,9992,28/02/2023,2022,11,15/03/2023,2022,12,2022,12,12.05,0.00,12.05,E,0%,2022,12,,,asda,MP wedding flowers Phil Stead 28/2/23,Other,3040,40100,,,People and Places,People and Places,Y,15/03/2023 11:52,JHEALD,6992,7667,N,,,,Y,29/03/2023 17:45,JAROBINSON,15/03/2023,2022,12,JHEALD,15/03/2023 11:51,N,N
************9358,40,Mrs Janet E Heald,U,Janet Heald,10045,C,10045,02/03/2023,2022,12,30/03/2023,2022,12,2022,12,9.99,0.00,9.99,C,0%,2022,12,,,amazon,stationary sticky labels for seat numbers,Other,3040,42200,,,People and Places,People and Places,Y,30/03/2023 15:43,JHEALD,7043,7696,N,,,,Y,30/03/2023 16:35,JAROBINSON,30/03/2023,2022,12,JHEALD,30/03/2023 15:41,N,N
************9358,40,Mrs Janet E Heald,U,Janet Heald,10046,C,10046,24/03/2023,2022,12,30/03/2023,2022,12,2022,12,4.00,0.00,4.00,C,0%,2022,12,,,asda,napkins for weddings and events,Other,3040,40100,,,People and Places,People and Places,Y,30/03/2023 15:43,JHEALD,7043,7696,N,,,,Y,30/03/2023 16:35,JAROBINSON,30/03/2023,2022,12,JHEALD,30/03/2023 15:42,N,N
************1764,42,Jordan Cartmell,U,Jordan Cartmell,9931,C,9931,01/01/2023,2022,10,03/03/2023,2022,12,2022,12,4.66,0.00,4.66,C,0%,2022,12,,,Google,Google search API December usage,Other,6404,43500,43500,,Resources,Resources,Y,03/03/2023 12:54,CCROOK,6961,7621,N,,,,Y,03/03/2023 12:57,LBROPHY,03/03/2023,2022,12,JCARTMELL,03/03/2023 12:54,N,N
************1764,42,Jordan Cartmell,U,Jordan Cartmell,9932,C,9932,04/01/2023,2022,10,03/03/2023,2022,12,2022,12,77.88,12.98,64.90,B,20%,2022,12,,,Essanet LTD,"3 x CAT6a Shielded Black 1m Ethernet Patch Cable, Ten Pack (F/FTP, LSZH, Low Smoke). 5 x CAT6 Shielded Black 10m Ethernet Patch Cable (F/UTP LSZH).",Other,6404,43500,43500,,Resources,Resources,Y,03/03/2023 13:01,JCARTMELL,6963,7622,N,,,,Y,03/03/2023 14:05,LBROPHY,03/03/2023,2022,12,JCARTMELL,03/03/2023 13:01,N,N
************1764,42,Jordan Cartmell,U,Jordan Cartmell,9943,C,9943,24/01/2023,2022,10,03/03/2023,2022,12,2022,12,144.53,24.09,120.44,B,20%,2022,12,,,Plastor Limited,6 x 1742/0003 Euro Container 400x300x170mm Grey with hand holes. 6 x 3242/0003 Euro Container 400x300x320mm Grey with hand holes.,Other,6404,40300,,,Resources,Resources,Y,03/03/2023 15:16,JCARTMELL,6966,7632,N,,,,Y,03/03/2023 15:42,LBROPHY,03/03/2023,2022,12,JCARTMELL,03/03/2023 15:15,N,N
************1764,42,Jordan Cartmell,U,Jordan Cartmell,9944,C,9944,30/01/2023,2022,10,03/03/2023,2022,12,2022,12,7.91,0.00,7.91,C,0%,2022,12,,,Namecheap,visitpoultonlefylde.co.uk one year domain renewal.,Other,6404,43500,43500,,Resources,Resources,Y,03/03/2023 16:19,JCARTMELL,6967,7633,N,,,,Y,03/03/2023 18:25,LBROPHY,03/03/2023,2022,12,JCARTMELL,03/03/2023 15:26,N,N
************1764,42,Jordan Cartmell,U,Jordan Cartmell,9945,C,9945,01/02/2023,2022,11,03/03/2023,2022,12,2022,12,14.69,0.00,14.69,C,0%,2022,12,,,Google,Google search API usage for January 2023.,Other,6404,43500,43500,,Resources,Resources,Y,03/03/2023 16:20,JCARTMELL,6968,7634,N,,,,Y,03/03/2023 18:25,LBROPHY,03/03/2023,2022,12,JCARTMELL,03/03/2023 16:19,N,N
************1764,42,Jordan Cartmell,U,Jordan Cartmell,9946,C,9946,06/02/2023,2022,11,03/03/2023,2022,12,2022,12,45.27,7.55,37.72,B,20%,2022,12,,,Kenable,20 x BRAIDED 20AWG USB PD Type C To USB-C FAST CHARGER 3A Charging Cable 2m BLACK.,Other,6404,43500,43500,,Resources,Resources,Y,03/03/2023 16:26,JCARTMELL,6969,7635,N,,,,Y,03/03/2023 18:25,LBROPHY,03/03/2023,2022,12,JCARTMELL,03/03/2023 16:25,N,N
************1764,42,Jordan Cartmell,U,Jordan Cartmell,9947,C,9947,06/02/2023,2022,11,03/03/2023,2022,12,2022,12,114.91,19.15,95.76,B,20%,2022,12,,,WiFi Stock (UK) LTD,"20 x 48V (0.5A) Gigabit PoE adapter, UK",Other,6404,43500,43500,,Resources,Resources,Y,03/03/2023 16:32,JCARTMELL,6970,7636,N,,,,Y,03/03/2023 18:25,LBROPHY,03/03/2023,2022,12,JCARTMELL,03/03/2023 16:31,N,N
************1764,42,Jordan Cartmell,U,Jordan Cartmell,9986,C,9986,07/02/2023,2022,11,14/03/2023,2022,12,2022,12,96.96,16.16,80.80,B,20%,2022,12,,,Premier Farnell UK Ltd,"EXTENSION 4 GANG WITH 2 USB, BLACK 2M.",Other,6404,43500,43500,,Resources,Resources,Y,14/03/2023 14:40,JCARTMELL,6991,7663,N,,,,Y,14/03/2023 14:52,LBROPHY,14/03/2023,2022,12,JCARTMELL,14/03/2023 14:40,N,N
************1764,42,Jordan Cartmell,U,Jordan Cartmell,9948,C,9948,15/02/2023,2022,11,03/03/2023,2022,12,2022,12,8.11,0.00,8.11,C,0%,2022,12,,,Namecheap,wyretheatres.co.uk domain renewal for one year.,Other,6404,43500,43500,,Resources,Resources,Y,03/03/2023 16:47,JCARTMELL,6971,7637,N,,,,Y,03/03/2023 18:25,LBROPHY,03/03/2023,2022,12,JCARTMELL,03/03/2023 16:46,N,N
************1764,42,Jordan Cartmell,U,Jordan Cartmell,9972,C,9972,20/02/2023,2022,11,09/03/2023,2022,12,2022,12,15.99,2.67,13.32,B,20%,2022,12,,,Udemy,Active Directory Users and Computers Udemy course.,Other,6404,17012,,,Resources,Resources,Y,09/03/2023 09:39,JCARTMELL,6979,7649,N,,,,Y,14/03/2023 14:52,LBROPHY,09/03/2023,2022,12,JCARTMELL,09/03/2023 09:39,N,N
************1764,42,Jordan Cartmell,U,Jordan Cartmell,9949,C,9949,21/02/2023,2022,11,03/03/2023,2022,12,2022,12,8.19,0.00,8.19,C,0%,2022,12,,,Namecheap,One year domain renewal for mywyre.co.uk,Other,6404,43500,43500,,Resources,Resources,Y,03/03/2023 17:18,JCARTMELL,6972,7638,N,,,,Y,03/03/2023 18:25,LBROPHY,03/03/2023,2022,12,JCARTMELL,03/03/2023 17:17,N,N
************1764,42,Jordan Cartmell,U,Jordan Cartmell,9950,C,9950,22/02/2023,2022,11,03/03/2023,2022,12,2022,12,8.12,0.00,8.12,C,0%,2022,12,,,Namecheap,One year domain renewal for marinehall.co.uk,Other,6404,43500,43500,,Resources,Resources,Y,03/03/2023 17:21,JCARTMELL,6973,7639,N,,,,Y,03/03/2023 18:25,LBROPHY,03/03/2023,2022,12,JCARTMELL,03/03/2023 17:21,N,N
************1764,42,Jordan Cartmell,U,Jordan Cartmell,10061,C,10061,01/03/2023,2022,12,04/04/2023,2023,1,2023,1,11.50,0.00,11.50,C,0%,2023,1,,,Google Inc,Google Search Console monthly usage for February 2023.,Other,6404,43500,43500,,Resources,Resources,Y,04/04/2023 18:25,JCARTMELL,7048,7704,N,,,,Y,05/04/2023 14:03,LBROPHY,04/04/2023,2023,1,JCARTMELL,04/04/2023 18:24,N,N
************1764,42,Jordan Cartmell,U,Jordan Cartmell,10062,C,10062,08/03/2023,2022,12,04/04/2023,2023,1,2023,1,16.47,0.00,16.47,C,0%,2023,1,,,Namecheap,markethousestudios.co.uk and mycoastline.org.uk renewed for one year.,Other,6404,43500,43500,,Resources,Resources,Y,04/04/2023 18:27,JCARTMELL,7049,7705,N,,,,Y,05/04/2023 14:03,LBROPHY,04/04/2023,2023,1,JCARTMELL,04/04/2023 18:27,N,N
************1764,42,Jordan Cartmell,U,Jordan Cartmell,9998,C,9998,09/03/2023,2022,12,16/03/2023,2022,12,2022,12,123.23,20.54,102.69,B,20%,2022,12,,,Kenable,10 x DisplayPort Plug to DVI-D 24 1 Male Plug Digital Video Cable GOLD 2m. 10 x DisplayPort v1.4 HBR3 8K 60Hz 4K 120Hz MST 32.4G HDR Cable Gold 2m. 10 x DVI-D 24 1pin Male to HDMI Digital Video Cable Lead GOLD 2m.,Other,6404,43500,43500,,Resources,Resources,Y,29/03/2023 10:14,CCROOK,7026,7672,N,,,,Y,29/03/2023 10:34,LBROPHY,16/03/2023,2022,12,JCARTMELL,16/03/2023 16:53,N,N
************1764,42,Jordan Cartmell,U,Jordan Cartmell,9996,C,9996,15/03/2023,2022,12,16/03/2023,2022,12,2022,12,300.00,50.00,250.00,B,20%,2022,12,,,CM Telecom UK Ltd,Prepaid top up for SMS secure gateway messages for SecurEnvoy.,Other,6404,43500,43500,,Resources,Resources,Y,29/03/2023 10:14,CCROOK,7027,7670,N,,,,Y,29/03/2023 10:34,LBROPHY,16/03/2023,2022,12,JCARTMELL,16/03/2023 16:34,N,N
************1764,42,Jordan Cartmell,U,Jordan Cartmell,9997,C,9997,16/03/2023,2022,12,16/03/2023,2022,12,2022,12,102.60,17.10,85.50,B,20%,2022,12,,,Essanet Ltd,DrayTek Vigor 167 ADSL2 /VDSL2 Modem.,Other,6404,43500,43500,,Resources,Resources,Y,29/03/2023 10:14,CCROOK,7028,7671,N,,,,Y,29/03/2023 10:34,LBROPHY,16/03/2023,2022,12,JCARTMELL,16/03/2023 16:35,N,N
************9368,43,Ms J A Robinson,U,Julia Robinson,9902,C,9902,22/01/2023,2022,10,28/02/2023,2022,11,2022,11,19.25,0.00,19.25,C,0%,2022,10,,,MORRISONS,CATERING SUPPLIES FOR TDCI BOOKING,Other,3040,41100,,,People and Places,People and Places,Y,28/02/2023 19:06,JAROBINSON,6927,7599,N,,,,Y,01/03/2023 12:06,MHESKETH,28/02/2023,2022,11,JAROBINSON,28/02/2023 18:53,N,N
************9368,43,Ms J A Robinson,U,Julia Robinson,10047,C,10047,03/02/2023,2022,11,30/03/2023,2022,12,2022,12,33.08,0.00,33.08,C,0%,2022,12,,,MORRISONS,SUPPLIES FOR AFTERNOON TEA PAULA BOSCOTT DANCE,Other,3040,41100,,,People and Places,People and Places,Y,30/03/2023 16:32,JAROBINSON,7045,7697,N,,,,Y,30/03/2023 16:34,MHESKETH,30/03/2023,2022,12,JAROBINSON,30/03/2023 15:55,N,N
************5315,44,Mrs Tracy J Waistle,U,Tracey Waistle,9925,C,9925,10/01/2023,2022,10,03/03/2023,2022,12,2022,12,11.98,2.00,9.98,B,20%,2022,12,Y,GB380291500,Amazon,Ice scraper INV-GB-1680973425-2023-9500,Other,6905,42002,,,People and Places,People and Places,Y,03/03/2023 12:56,CCROOK,6962,7615,N,,,,Y,06/03/2023 08:35,GSCOTT,03/03/2023,2022,12,TWAISTLE,03/03/2023 09:55,N,N
************5315,44,Mrs Tracy J Waistle,U,Tracey Waistle,9750,C,9750,10/01/2023,2022,10,02/02/2023,2022,11,2022,11,19.99,3.33,16.66,B,20%,2022,11,Y,GB149722741,Amazon - Tetrosyl Express,Screen wash INV-GB-787388105-2023-1519,Other,6905,42002,,,People and Places,People and Places,Y,06/02/2023 11:10,JCARTRIDGE,6893,7497,N,,,,Y,06/02/2023 15:25,GSCOTT,02/02/2023,2022,11,TWAISTLE,02/02/2023 15:56,N,N
************5315,44,Mrs Tracy J Waistle,U,Tracey Waistle,9749,C,9749,11/01/2023,2022,10,02/02/2023,2022,11,2022,11,55.96,9.32,46.64,B,20%,2022,11,Y,GB422744900,Amazon - SNMIX,Windscreen protector INV-GB-20929000635-2023-482,Other,6905,42002,,,People and Places,People and Places,Y,06/02/2023 11:19,CCROOK,6895,7496,N,,,,Y,07/02/2023 12:00,GSCOTT,02/02/2023,2022,11,TWAISTLE,02/02/2023 15:54,N,N
************5315,44,Mrs Tracy J Waistle,U,Tracey Waistle,9751,C,9751,18/01/2023,2022,10,02/02/2023,2022,11,2022,11,35.00,5.83,29.17,B,20%,2022,11,Y,GB105537533,Amazon - GHSL,Heater INV-GB-177234481-2023-5183,Other,6905,42002,,,People and Places,People and Places,Y,06/02/2023 11:10,JCARTRIDGE,6894,7498,N,,,,Y,06/02/2023 15:25,GSCOTT,02/02/2023,2022,11,TWAISTLE,02/02/2023 15:58,N,N
************5315,44,Mrs Tracy J Waistle,U,Tracey Waistle,9775,C,9775,25/01/2023,2022,10,03/02/2023,2022,11,2022,11,11.99,2.00,9.99,B,20%,2022,11,Y,GB323947490,Amazon,Water containers INV-GB-1244844015-2023-33,Other,6953,42002,,,People and Places,People and Places,Y,06/02/2023 11:10,JCARTRIDGE,6891,7526,N,,,,Y,06/02/2023 15:25,GSCOTT,03/02/2023,2022,11,TWAISTLE,03/02/2023 11:23,N,N
************5315,44,Mrs Tracy J Waistle,U,Tracey Waistle,9776,C,9776,25/01/2023,2022,10,03/02/2023,2022,11,2022,11,31.08,0.00,31.08,C,0%,2022,11,,GB190023639,Amazon,Animal stretcher DS-ASE-INV-GB-2023-35198935,Other,6905,42002,,,People and Places,People and Places,Y,06/02/2023 11:19,CCROOK,6895,7527,N,,,,Y,07/02/2023 12:00,GSCOTT,03/02/2023,2022,11,TWAISTLE,03/02/2023 11:28,N,N
************5315,44,Mrs Tracy J Waistle,U,Tracey Waistle,9774,C,9774,26/01/2023,2022,10,03/02/2023,2022,11,2022,11,65.95,10.99,54.96,B,20%,2022,11,Y,GB374047984,Amazon - Globewolf,Oil radiator INV-GB-1807780615-2023-276,Other,6953,42002,,,People and Places,People and Places,Y,06/02/2023 11:10,JCARTRIDGE,6892,7525,N,,,,Y,06/02/2023 15:25,GSCOTT,03/02/2023,2022,11,TWAISTLE,03/02/2023 11:20,N,N
************5315,44,Mrs Tracy J Waistle,U,Tracey Waistle,9863,C,9863,06/02/2023,2022,11,24/02/2023,2022,11,2022,11,209.98,35.00,174.98,B,20%,2022,11,Y,128754295,Turtle Engineering Limited,First Aid Bleed Control Kit Invoice no: 2022-8542,Other,6953,40901,,,People and Places,People and Places,Y,02/03/2023 11:38,CCROOK,6951,7590,N,,,,Y,02/03/2023 13:29,GSCOTT,24/02/2023,2022,11,TWAISTLE,24/02/2023 17:11,N,N
************5315,44,Mrs Tracy J Waistle,U,Tracey Waistle,9980,C,9980,10/03/2023,2022,12,10/03/2023,2022,12,2022,12,145.20,24.20,121.00,B,20%,2022,12,Y,gb318887358,Lifting365,Easy-lift Manhole cover lifter Order no: GB20233961,Other,3320,40100,,,People and Places,People and Places,Y,29/03/2023 10:14,CCROOK,7031,7657,N,,,,Y,29/03/2023 10:42,GSCOTT,10/03/2023,2022,12,TWAISTLE,10/03/2023 15:01,N,N
************5315,44,Mrs Tracy J Waistle,U,Tracey Waistle,9994,C,9994,14/03/2023,2022,12,15/03/2023,2022,12,2022,12,106.16,17.69,88.47,B,20%,2022,12,,733097336,he Plant Place,Trees materials Poulton Cemetery Receipt,Other,3220,28003,,,People and Places,People and Places,Y,29/03/2023 10:14,CCROOK,7030,7668,N,,,,Y,29/03/2023 10:42,GSCOTT,15/03/2023,2022,12,TWAISTLE,15/03/2023 13:29,N,N
************5315,44,Mrs Tracy J Waistle,U,Tracey Waistle,9995,C,9995,15/03/2023,2022,12,15/03/2023,2022,12,2022,12,145.20,24.20,121.00,B,20%,2022,12,Y,GB318887358,Lifting365,Easy-lift manhole Cover Lifter Order no: GB20234002,Other,3320,40100,,,People and Places,People and Places,Y,29/03/2023 10:14,CCROOK,7029,7669,N,,,,Y,29/03/2023 10:42,GSCOTT,15/03/2023,2022,12,TWAISTLE,15/03/2023 13:48,N,N
************5315,44,Mrs Tracy J Waistle,U,Tracey Waistle,10053,C,10053,21/03/2023,2022,12,30/03/2023,2022,12,2023,1,67.45,0.00,67.45,C,0%,2022,12,,,Trainline,Train tickets Carl Green Harry Grundy Invoice no: 551956770307,Travel and Accommodation,6902,33000,,,People and Places,People and Places,Y,30/03/2023 16:36,CCROOK,7047,7699,N,,,,Y,28/04/2023 10:22,GSCOTT,01/04/2023,2023,1,TWAISTLE,30/03/2023 16:20,N,R
************5315,44,Mrs Tracy J Waistle,U,Tracey Waistle,10057,C,10057,21/03/2023,2022,12,30/03/2023,2022,12,2023,1,110.00,18.33,91.67,B,20%,2022,12,Y,407515119,The Grange Hotel,Room booking for conference Harry Grundy,Other,6902,33000,,,People and Places,People and Places,Y,30/03/2023 16:36,CCROOK,7047,7700,N,,,,Y,28/04/2023 10:22,GSCOTT,01/04/2023,2023,1,TWAISTLE,30/03/2023 16:28,N,R
************3130,45,Emma Lyons,U,Emma Lyons,9975,C,9975,02/02/2023,2022,11,10/03/2023,2022,12,2022,12,180.20,0.00,180.20,R,0%,2022,12,,,Mailchimp,Mailchimp fees,Other,6501,,,,People and Places,People and Places,Y,10/03/2023 12:15,BMCDONOUGH,6983,7652,N,,,,Y,10/03/2023 13:59,MHESKETH,10/03/2023,2022,12,BMCDONOUGH,10/03/2023 12:06,N,N
************3130,45,Emma Lyons,U,Emma Lyons,9974,C,9974,03/02/2023,2022,11,10/03/2023,2022,12,2022,12,17.14,0.00,17.14,R,0%,2022,12,,,Facebook,Elvis & Heritage event Paid social,Other,3040,46100,,,People and Places,People and Places,Y,10/03/2023 12:15,BMCDONOUGH,6984,7651,N,,,,Y,10/03/2023 13:59,MHESKETH,10/03/2023,2022,12,BMCDONOUGH,10/03/2023 12:04,N,N
************3130,45,Emma Lyons,U,Emma Lyons,9976,C,9976,03/02/2023,2022,11,10/03/2023,2022,12,2022,12,353.31,58.89,294.42,B,20%,2022,12,,,Issuu,Issuu Annual Fee,Other,6501,46107,,,People and Places,People and Places,Y,10/03/2023 12:15,BMCDONOUGH,6985,7653,N,,,,Y,10/03/2023 13:59,MHESKETH,10/03/2023,2022,12,BMCDONOUGH,10/03/2023 12:11,N,N
************3130,45,Emma Lyons,U,Emma Lyons,9977,C,9977,05/02/2023,2022,11,10/03/2023,2022,12,2022,12,99.99,0.00,99.99,R,0%,2022,12,,,Canva,Canva fees - design,Other,6501,46107,,,People and Places,People and Places,Y,10/03/2023 12:15,BMCDONOUGH,6986,7654,N,,,,Y,10/03/2023 13:59,MHESKETH,10/03/2023,2022,12,BMCDONOUGH,10/03/2023 12:13,N,N
************3130,45,Emma Lyons,U,Emma Lyons,9978,C,9978,20/02/2023,2022,11,10/03/2023,2022,12,2022,12,618.96,103.16,515.80,B,20%,2022,12,,,Discount Displays,Displays for Garstang TIC in Library,Other,6501,46107,,,People and Places,People and Places,Y,10/03/2023 12:15,BMCDONOUGH,6987,7655,N,,,,Y,10/03/2023 13:59,MHESKETH,10/03/2023,2022,12,BMCDONOUGH,10/03/2023 12:14,N,N
************3130,45,Emma Lyons,U,Emma Lyons,10042,C,10042,02/03/2023,2022,12,30/03/2023,2022,12,2022,12,125.00,0.00,125.00,C,0%,2022,12,,,Facebook,"Paid social for HR, Theatres, Heritage, Comms",Other,6501,,,,People and Places,People and Places,Y,30/03/2023 11:22,BMCDONOUGH,7039,7693,N,,,,Y,30/03/2023 12:01,MHESKETH,30/03/2023,2022,12,BMCDONOUGH,30/03/2023 11:17,N,N
************3130,45,Emma Lyons,U,Emma Lyons,10039,C,10039,03/03/2023,2022,12,29/03/2023,2022,12,2022,12,2.89,0.00,2.89,R,0%,2022,12,,,Facebook,Paid social theatres,Other,3040,46100,,,People and Places,People and Places,Y,30/03/2023 09:56,CCROOK,7037,7691,N,,,,Y,30/03/2023 12:01,MHESKETH,29/03/2023,2022,12,BMCDONOUGH,29/03/2023 17:24,N,N
************3130,45,Emma Lyons,U,Emma Lyons,10043,C,10043,03/03/2023,2022,12,30/03/2023,2022,12,2022,12,184.82,0.00,184.82,C,0%,2022,12,,,Mailchimp,Mailchimp,Other,6501,,,,People and Places,People and Places,Y,30/03/2023 11:22,BMCDONOUGH,7040,7694,N,,,,Y,30/03/2023 12:01,MHESKETH,30/03/2023,2022,12,BMCDONOUGH,30/03/2023 11:19,N,N
************3130,45,Emma Lyons,U,Emma Lyons,10040,C,10040,16/03/2023,2022,12,30/03/2023,2022,12,2022,12,-359.88,-59.98,-299.90,B,20%,2022,12,,,Discount displays,Leaflet racks - refund,Other,6501,46107,,,People and Places,People and Places,Y,30/03/2023 10:43,ELYONS,7038,7692,N,,,,Y,30/03/2023 12:01,MHESKETH,30/03/2023,2022,12,ELYONS,30/03/2023 10:41,N,N
************3130,45,Emma Lyons,U,Emma Lyons,10041,C,10041,23/03/2023,2022,12,30/03/2023,2022,12,2022,12,120.00,20.00,100.00,B,20%,2022,12,,,SP party packs,Coronation crowns,Other,3010,46522,COR,,People and Places,People and Places,Y,30/03/2023 10:43,ELYONS,7038,7692,N,,,,Y,30/03/2023 12:01,MHESKETH,30/03/2023,2022,12,ELYONS,30/03/2023 10:42,N,N
